fUST/lending_fUST_20251015
["ID","MTS","AMOUNT","RATE_DAILY","PERIOD"]
[391270951,1760458248237,-284.000315,0.00029444,30]
[391270952,1760458248248,-284.000315,0.00029444,30]
[391270953,1760458248259,-151.0,0.00029444,30]
[391270954,1760458248272,-284.000315,0.00029444,30]
[391270955,1760458248281,-151.0,0.00029444,30]
[391270956,1760458248291,-227.480261,0.00029444,30]
[391270957,1760458248300,-151.0,0.00029444,30]
[391270958,1760458248309,-151.0,0.00029444,30]
[391270959,1760458248318,-151.0,0.00029444,30]
[391270960,1760458248327,-151.0,0.00029444,30]
[391270961,1760458248336,-151.0,0.00029444,30]
[391270962,1760458248346,-151.0,0.00029444,30]
[391270963,1760458248356,-151.0,0.00029444,30]
[391270964,1760458248365,-153.341078,0.00029444,30]
[391270965,1760458248374,-151.0,0.00029444,30]
[391270967,1760458248383,-151.0,0.00029444,30]
[391270968,1760458248392,-151.0,0.00029444,30]
[391270969,1760458248405,-462.588551,0.00029444,30]
[391270970,1760458248415,-462.588551,0.00029444,30]
[391270971,1760458248425,-462.588551,0.00029444,30]
[391270972,1760458248435,-462.588551,0.00029444,30]
[391270973,1760458248444,-151.0,0.00029444,30]
[391270974,1760458248454,-153.505272,0.00029444,30]
[391270975,1760458248463,-151.0,0.00029444,30]
[391270976,1760458248472,-151.0,0.00029444,30]
[391270977,1760458248482,-151.0,0.00029444,30]
[391270978,1760458248491,-151.0,0.00029444,30]
[391270979,1760458248649,-151.0,0.00029444,30]
[391270980,1760458248665,-151.0,0.00029444,30]
[391270981,1760458248675,-1811.79,0.00029459,15]
[391270982,1760458248684,-500.0,0.0002946,20]
[391270983,1760458248694,-5888.0,0.00029462,2]
[391270984,1760458248703,-4237.0,0.00029476,2]
[391270985,1760458248713,-621.53778855,0.00029495,31]
[391270986,1760458248722,-72948.33,0.000295,7]
[391270987,1760458248732,-312.9392626,0.00029505,2]
[391270988,1760458248742,-600.0,0.00029521,2]
[391270989,1760458248751,-1043.15,0.00029522,2]
[391270990,1760458248760,-2492.0,0.00029528,2]
[391270991,1760458248770,-1811.79,0.00029559,15]
[391270992,1760458248779,-3694.12,0.000296,2]
[391270993,1760458248789,-7209.06,0.000296,2]
[391270994,1760458248798,-500.0,0.0002961,5]
[391270995,1760458248808,-154.610225,0.0002965,30]
[391270996,1760458248817,-1811.79,0.00029659,15]
[391270997,1760458248826,-512.35255983,0.0002966,5]
[391270998,1760458248835,-1043.15,0.00029696,2]
[391270999,1760458248844,-154.610225,0.00029731,2]
[391271000,1760458248853,-158.094676,0.00029731,2]
[391271001,1760458248863,-800.0,0.00029747,2]
[391271002,1760458248872,-1071.22889211,0.00029758,2]
[391271003,1760458248882,-1811.79,0.00029759,15]
[391271004,1760458248891,-2490.0,0.00029786,7]
[391271005,1760458248901,-2960.0706181,0.000298,7]
[391271006,1760458248918,-500.0,0.0002981,5]
[391271007,1760458248928,-251.99672079,0.00029813,2]
[391271008,1760458248939,-22309.888401,0.00029815,2]
[391271009,1760458248952,-600.0,0.00029825,2]
[391271010,1760458248964,-1811.79,0.00029859,15]
[391271011,1760458248975,-500.0,0.00029866,2]
[391271012,1760458248986,-160.0,0.00029886,9]
[391271013,1760458248997,-1500.0,0.000299,3]
[391271014,1760458249015,-2490.0,0.00029908,2]
[391271015,1760458249028,-4560.0,0.00029934,2]
[391271016,1760458249041,-182.0,0.00029945,37]
[391271017,1760458249054,-160.0,0.00029952,2]
[391271018,1760458249069,-1811.79,0.00029959,15]
[391271019,1760458249081,-200.0,0.0003,120]
[391271020,1760458249091,-171.013,0.0003,2]
[391271021,1760458249103,-188.114,0.0003,2]
[391271022,1760458249120,-1103.0,0.0003,7]
[391271023,1760458249133,-188.114,0.0003,2]
[391271024,1760458249146,-200.0,0.00030004,120]
[391271025,1760458249168,-500.0,0.0003001,5]
[391271026,1760458249180,-4199.0,0.00030023,2]
[391271027,1760458249191,-1000.0,0.0003003,4]
[391271028,1760458249204,-800.0,0.00030041,2]
[391271029,1760458249216,-1811.79,0.00030059,15]
[391271030,1760458249229,-800.0,0.00030064,2]
[391271031,1760458249240,-154.610225,0.00030075,30]
[391271032,1760458249251,-158.094676,0.00030075,30]
[391271033,1760458249262,-500.0,0.00030095,2]
[391271034,1760458249273,-154.610225,0.00030111,10]
[391271035,1760458249284,-600.0,0.0003013,2]
[391271036,1760458249294,-8364.85,0.00030136,8]
[391271037,1760458249304,-200.3671795,0.00030137,5]
[391271038,1760458249314,-567.63014571,0.00030147,2]
[391271039,1760458249324,-2268.25006225,0.00030147,2]
[391271040,1760458249335,-572.6419743,0.00030147,2]
[391271041,1760458249344,-2290.56789719,0.00030147,2]
[391271042,1760458249355,-5148.62399091,0.00030147,2]
[391271043,1760458249364,-800.0,0.00030157,2]
[391271044,1760458249373,-1811.79,0.00030159,15]
[391271045,1760458249383,-1400.0,0.00030161,7]
[391271046,1760458249392,-151.0,0.00030164,30]
[391271047,1760458249409,-151.0,0.00030164,30]
[391271048,1760458249419,-151.0,0.00030164,30]
[391271049,1760458249428,-151.0,0.00030164,30]
[391271050,1760458249438,-162.404187,0.00030164,30]
[391271051,1760458249448,-151.0,0.00030164,30]
[391271052,1760458249457,-151.0,0.00030164,30]
[391271053,1760458249467,-151.0,0.00030164,30]
[391271054,1760458249476,-151.0,0.00030164,30]
[391271055,1760458249486,-151.0,0.00030164,30]
[391271056,1760458249496,-151.0,0.00030164,30]
[391271057,1760458249506,-151.0,0.00030164,30]
[391271058,1760458249515,-151.0,0.00030164,30]
[391271059,1760458249525,-151.0,0.00030164,30]
[391271060,1760458249535,-800.0,0.00030167,2]
[391271061,1760458249544,-151.0,0.00030191,30]
[391271062,1760458249554,-151.0,0.00030191,30]
[391271063,1760458249563,-151.0,0.00030191,30]
[391271064,1760458249573,-151.0,0.00030191,30]
[391271065,1760458249583,-151.0,0.00030191,30]
[391271066,1760458249592,-151.0,0.00030191,30]
[391271067,1760458249601,-151.0,0.00030191,30]
[391271068,1760458249611,-404.366037,0.00030191,30]
[391271069,1760458249620,-404.366037,0.00030191,30]
[391271070,1760458249630,-404.366037,0.00030191,30]
[391271071,1760458249640,-404.366037,0.00030191,30]
[391271072,1760458249649,-151.0,0.00030191,30]
[391271073,1760458249663,-151.0,0.00030191,30]
[391271074,1760458249672,-152.162104,0.00030191,30]
[391271075,1760458249682,-151.0,0.00030191,30]
[391271076,1760458249691,-358.453374,0.00030191,30]
[391271077,1760458249701,-358.453374,0.00030191,30]
[391271078,1760458249710,-358.453374,0.00030191,30]
[391271079,1760458249719,-358.453374,0.00030191,30]
[391271080,1760458249729,-236.143056,0.00030191,30]
[391271081,1760458249738,-151.0,0.00030191,30]
[391271082,1760458249748,-296.91476082,0.00030191,30]
[391271083,1760458249757,-151.0,0.00030191,30]
[391271084,1760458249767,-151.0,0.00030191,30]
[391271085,1760458249776,-151.0,0.00030191,30]
[391271086,1760458249785,-151.0,0.00030191,30]
[391271087,1760458249795,-151.0,0.00030191,30]
[391271088,1760458249804,-151.0,0.00030191,30]
[391271089,1760458249813,-151.0,0.00030191,30]
[391271090,1760458249822,-151.0,0.00030191,2]
[391271091,1760458249831,-152.502896,0.00030191,30]
[391271092,1760458249840,-151.0,0.00030191,30]
[391271093,1760458249850,-151.0,0.00030191,30]
[391271094,1760458249859,-151.0,0.00030191,30]
[391271095,1760458249868,-186.27691,0.00030191,30]
[391271096,1760458249878,-151.0,0.00030191,30]
[391271097,1760458249887,-151.0,0.00030191,30]
[391271098,1760458249896,-151.0,0.00030191,30]
[391271099,1760458249909,-151.0,0.00030191,30]
[391271100,1760458249919,-190.03695,0.00030191,30]
[391271101,1760458249928,-190.03695,0.00030191,30]
[391271102,1760458249938,-190.03695,0.00030191,30]
[391271103,1760458249948,-190.03695,0.00030191,30]
[391271104,1760458249957,-151.0,0.00030199,30]
[391271105,1760458249966,-151.0,0.00030199,30]
[391271106,1760458249975,-151.0,0.00030199,30]
[391271107,1760458249984,-151.0,0.00030199,30]
[391271108,1760458249993,-151.0,0.00030199,30]
[391271109,1760458250003,-151.0,0.00030199,30]
[391271110,1760458250012,-151.0,0.00030199,30]
[391271111,1760458250021,-151.0,0.00030199,30]
[391271112,1760458250030,-151.0,0.00030199,30]
[391271113,1760458250040,-151.0,0.00030199,30]
[391271114,1760458250050,-282.941654,0.00030199,30]
[391271115,1760458250060,-151.0,0.00030199,30]
[391271116,1760458250073,-339.48115,0.00030199,30]
[391271117,1760458250082,-339.48115,0.00030199,30]
[391271118,1760458250091,-339.48115,0.00030199,30]
[391271119,1760458250100,-151.0,0.00030199,30]
[391271120,1760458250110,-339.48115,0.00030199,30]
[391271121,1760458250119,-151.0,0.00030199,30]
[391271122,1760458250127,-747.29536,0.00030199,30]
[391271123,1760458250137,-747.29536,0.00030199,30]
[391271124,1760458250146,-747.29536,0.00030199,30]
[391271125,1760458250159,-747.29536,0.00030199,30]
[391271126,1760458250168,-151.0,0.00030199,30]
[391271127,1760458250177,-1468.276667,0.00030199,30]
[391271128,1760458250186,-151.0,0.00030199,30]
[391271129,1760458250195,-1468.276667,0.00030199,30]
[391271130,1760458250205,-151.0,0.00030199,30]
[391271131,1760458250214,-1468.276667,0.00030199,30]
[391271132,1760458250223,-1468.276667,0.00030199,30]
[391271133,1760458250233,-365.089926,0.00030199,2]
[391271134,1760458250242,-151.0,0.00030199,30]
[391271135,1760458250251,-151.0,0.00030199,30]
[391271136,1760458250260,-151.0,0.00030199,30]
[391271137,1760458250269,-151.0,0.00030199,30]
[391271138,1760458250278,-188.423895,0.00030199,30]
[391271139,1760458250287,-151.0,0.00030199,30]
[391271140,1760458250297,-188.423895,0.00030199,30]
[391271141,1760458250306,-151.0,0.00030199,30]
[391271142,1760458250315,-188.423895,0.00030199,30]
[391271143,1760458250324,-188.423895,0.00030199,30]
[391271144,1760458250333,-151.0,0.00030199,30]
[391271145,1760458250343,-279.761909,0.00030199,30]
[391271146,1760458250352,-279.761909,0.00030199,30]
[391271147,1760458250362,-279.761909,0.00030199,30]
[391271148,1760458250371,-293.719913,0.00030199,30]
[391271149,1760458250380,-279.761909,0.00030199,30]
[391271150,1760458250389,-293.719913,0.00030199,30]
[391271151,1760458250400,-182.517589,0.00030199,30]
[391271152,1760458250414,-293.719913,0.00030199,30]
[391271153,1760458250424,-182.517589,0.00030199,30]
[391271154,1760458250434,-293.719913,0.00030199,30]
[391271155,1760458250445,-182.517589,0.00030199,30]
[391271156,1760458250455,-151.0,0.00030199,30]
[391271157,1760458250466,-2958.511306,0.00030199,30]
[391271158,1760458250475,-182.517589,0.00030199,30]
[391271159,1760458250486,-2958.511306,0.00030199,30]
[391271160,1760458250496,-151.0,0.00030199,30]
[391271161,1760458250506,-151.0,0.00030199,30]
[391271162,1760458250517,-151.0,0.00030199,30]
[391271163,1760458250527,-2958.511306,0.00030199,30]
[391271164,1760458250538,-2958.511306,0.00030199,30]
[391271165,1760458250548,-151.0,0.00030199,30]
[391271166,1760458250558,-151.0,0.00030199,30]
[391271167,1760458250568,-151.0,0.00030199,30]
[391271168,1760458250577,-151.0,0.00030199,30]
[391271169,1760458250590,-151.0,0.00030199,30]
[391271170,1760458250611,-151.0,0.00030199,30]
[391271171,1760458250622,-253.732507,0.00030199,15]
[391271172,1760458250633,-188.698079,0.00030199,30]
[391271173,1760458250644,-253.732507,0.00030199,15]
[391271174,1760458250655,-188.698079,0.00030199,30]
[391271175,1760458250665,-253.732507,0.00030199,15]
[391271176,1760458250675,-188.698079,0.00030199,30]
[391271177,1760458250686,-253.732507,0.00030199,15]
[391271178,1760458250696,-188.698079,0.00030199,30]
[391271179,1760458250705,-151.0,0.00030199,30]
[391271180,1760458250715,-151.0,0.00030199,30]
[391271181,1760458250724,-151.0,0.00030199,30]
[391271182,1760458250734,-284.000315,0.00030199,30]
[391271183,1760458250744,-284.000315,0.00030199,30]
[391271184,1760458250754,-284.000315,0.00030199,30]
[391271185,1760458250763,-284.000315,0.00030199,30]
[391271186,1760458250773,-151.0,0.00030227,30]
[391271187,1760458250783,-151.0,0.00030227,30]
[391271188,1760458250793,-151.0,0.00030227,30]
[391271189,1760458250802,-151.0,0.00030227,30]
[391271190,1760458250812,-151.0,0.00030227,30]
[391271191,1760458250822,-151.0,0.00030227,30]
[391271192,1760458250831,-151.0,0.00030227,30]
[391271193,1760458250841,-151.0,0.00030227,30]
[391271194,1760458250850,-151.0,0.00030227,30]
[391271195,1760458250859,-151.0,0.00030227,30]
[391271196,1760458250869,-151.0,0.00030227,30]
[391271197,1760458250878,-151.0,0.00030227,30]
[391271198,1760458250888,-151.0,0.00030227,30]
[391271199,1760458250897,-153.136736,0.00030227,30]
[391271200,1760458250911,-151.0,0.00030227,30]
[391271201,1760458250922,-151.0,0.00030227,30]
[391271202,1760458250931,-151.0,0.00030227,30]
[391271203,1760458250941,-151.0,0.00030227,30]
[391271204,1760458250951,-151.0,0.00030227,30]
[391271205,1760458250961,-462.588551,0.00030227,30]
[391271206,1760458250972,-462.588551,0.00030227,30]
[391271207,1760458250981,-462.588551,0.00030227,30]
[391271208,1760458250991,-462.588551,0.00030227,30]
[391271209,1760458251001,-151.0,0.00030227,30]
[391271210,1760458251011,-151.0,0.00030227,30]
[391271211,1760458251020,-151.0,0.00030227,30]
[391271212,1760458251029,-151.0,0.00030227,30]
[391271213,1760458251038,-151.0,0.00030227,30]
[391271214,1760458251047,-151.0,0.00030227,30]
[391271215,1760458251057,-151.0,0.00030227,30]
[391271216,1760458251072,-860892.96348391,0.00030227,2]
[391271217,1760458251122,-507.62013432,0.00019178,2]
[391271218,1760458251138,-1878.57986568,0.00030227,2]
[391271219,1760458251150,-10102.1002118,0.00030227,2]
[391271220,1760458251165,-2324.59,0.00030227,2]
[391271221,1760458251429,-1351.34056551,0.00019623,2]
[391271222,1760458251439,-314.0,0.00019623,2]
[391271223,1760458251450,-1000.0,0.00027075,2]
[391271224,1760458251463,-151.0,0.00027075,2]
[391271225,1760458251473,-1000.0,0.00027075,2]
[391271226,1760458251483,-151.0,0.00027075,2]
[391271227,1760458251492,-162.38071901,0.00027075,2]
[391271228,1760458251502,-1000.0,0.00027075,2]
[391271229,1760458251513,-151.0,0.00027075,2]
[391271230,1760458251534,-1000.0,0.00027075,2]
[391271231,1760458251545,-151.0,0.00027075,2]
[391271232,1760458251555,-1000.0,0.00027075,2]
[391271233,1760458251662,-151.0,0.00027075,2]
[391271234,1760458251672,-1000.0,0.00027075,2]
[391271235,1760458251681,-151.0,0.00027075,2]
[391271236,1760458251691,-292.071941,0.0002871,2]
[391271237,1760458251700,-292.071941,0.0002871,2]
[391271238,1760458251709,-151.0,0.0002871,30]
[391271239,1760458251719,-292.071941,0.00029444,2]
[391271240,1760458251728,-292.071941,0.00029444,2]
[391271241,1760458251737,-292.071941,0.00030227,2]
[391271242,1760458251747,-292.071941,0.00030227,2]
[391271243,1760458251756,-66818.92222788,0.00030227,2]
[391271244,1760458251774,-292.071941,0.0002871,2]
[391271245,1760458251784,-151.0,0.00029444,30]
[391271246,1760458251793,-1801.03756215,0.00030227,2]
[391271247,1760458251804,-120767.61346981,0.00030227,2]
[391271248,1760458251943,-500.0,0.00019669,2]
[391271249,1760458251952,-500.0,0.00019669,2]
[391271250,1760458251963,-500.0,0.00019669,2]
[391271251,1760458251973,-500.0,0.00019669,2]
[391271252,1760458251982,-500.0,0.00019669,2]
[391271253,1760458251992,-500.0,0.00019669,2]
[391271254,1760458252001,-500.0,0.00019669,2]
[391271255,1760458252010,-500.0,0.00019669,2]
[391271256,1760458252019,-151.0,0.00027075,2]
[391271257,1760458252028,-151.0,0.00027075,2]
[391271258,1760458252037,-151.0,0.00027075,2]
[391271259,1760458252047,-151.0,0.00027075,2]
[391271260,1760458252061,-292.071941,0.0002871,2]
[391271261,1760458252071,-292.071941,0.00029444,2]
[391271262,1760458252080,-292.071941,0.00029444,2]
[391271263,1760458252090,-151.0,0.00030227,30]
[391271264,1760458252100,-292.071941,0.00030227,2]
[391271265,1760458252109,-292.071941,0.00030227,2]
[391271266,1760458252118,-11134.48393719,0.00030227,2]
[391271267,1760458252130,-8282.984904,0.00030227,2]
[391271268,1760458252141,-15104.82436809,0.00030227,2]
[391271269,1760458284182,10000.0,0.00018905,2]
[391271280,1760458304486,8400.0,0.00018905,2]
[391271282,1760458400087,370000.0,0.00018899,2]
[391271283,1760458410093,280.6,0.00030527,120]
[391271312,1760459001048,441.7700655,0.00018288,2]
[391271322,1760459163110,7008.99,0.00018905,2]
[391271333,1760459263459,3286.78612701,0.00018905,2]
[391271334,1760459282516,1336.8843779,0.00018248,2]
[391271337,1760459315638,452.999999,0.00030503,120]
[391271394,1760459432488,-186.74532631,0.00019,2]
[391271397,1760459432498,-69.29467373,0.00019,2]
[391271399,1760459432510,-83.5201858,0.00019,2]
[391271401,1760459432518,-451.63211832,0.00019168,2]
[391271403,1760459432527,-300.0,0.00019177,2]
[391271405,1760459432536,-300.0,0.00019177,2]
[391271406,1760459432545,-300.0,0.00019177,2]
[391271408,1760459432556,-1200.0,0.00019177,2]
[391271410,1760459432566,-500.0,0.00019178,2]
[391271412,1760459432575,-500.0,0.00019178,2]
[391271413,1760459432585,-500.0,0.00019178,2]
[391271415,1760459432594,-444.93055016,0.00019178,2]
[391271417,1760459432603,-501.81803998,0.00019178,2]
[391271419,1760459432612,-500.0,0.00019178,2]
[391271421,1760459432621,-501.60899115,0.00019178,2]
[391271423,1760459432633,-500.0,0.00019178,2]
[391271425,1760459432642,-500.0,0.00019178,2]
[391271426,1760459432651,-500.0,0.00019178,2]
[391271427,1760459432660,-469.004176,0.00019178,2]
[391271428,1760459432669,-500.0,0.00019178,2]
[391271429,1760459432678,-500.82937232,0.00019178,2]
[391271430,1760459432687,-500.0,0.00019178,2]
[391271431,1760459432696,-435.4,0.00019178,2]
[391271432,1760459432706,-500.0,0.00019178,2]
[391271433,1760459432715,-500.0,0.00019178,2]
[391271434,1760459432724,-500.0,0.00019178,2]
[391271435,1760459432733,-500.0,0.00019178,2]
[391271436,1760459432743,-234.24487279,0.00019178,2]
[391271437,1760459432752,-500.0,0.00019178,2]
[391271438,1760459432761,-605.5,0.00019178,2]
[391271439,1760459432770,-500.0,0.00019178,2]
[391271440,1760459432779,-500.0,0.00019178,2]
[391271441,1760459432788,-500.0,0.00019178,2]
[391271442,1760459432797,-500.0,0.00019178,2]
[391271443,1760459432806,-500.0,0.00019178,2]
[391271444,1760459432816,-500.0,0.00019178,2]
[391271445,1760459432825,-500.0,0.00019178,2]
[391271446,1760459432835,-500.0,0.00019178,2]
[391271447,1760459432844,-500.0,0.00019178,2]
[391271448,1760459432855,-356.94097742,0.00019178,2]
[391271449,1760459432864,-500.0,0.00019178,2]
[391271450,1760459432873,-500.0,0.00019178,2]
[391271451,1760459432888,-500.0,0.00019178,2]
[391271452,1760459432898,-500.0,0.00019178,2]
[391271453,1760459432907,-500.0,0.00019178,2]
[391271454,1760459432918,-500.0,0.00019178,2]
[391271455,1760459432927,-500.0,0.00019178,2]
[391271456,1760459432936,-500.0,0.00019178,2]
[391271457,1760459432945,-500.0,0.00019178,2]
[391271458,1760459432954,-500.0,0.00019178,2]
[391271459,1760459432963,-325.85826744,0.00019178,2]
[391271460,1760459432973,-643.62,0.00019178,2]
[391271461,1760459432982,-500.0,0.00019178,2]
[391271462,1760459432991,-500.0,0.00019178,2]
[391271463,1760459433000,-500.0,0.00019178,2]
[391271464,1760459433009,-500.0,0.00019178,2]
[391271465,1760459433019,-576.70432624,0.00019178,2]
[391271466,1760459433028,-500.0,0.00019178,2]
[391271467,1760459433037,-500.0,0.00019178,2]
[391271468,1760459433046,-500.0,0.00019178,2]
[391271469,1760459433056,-500.0,0.00019178,2]
[391271470,1760459433065,-500.0,0.00019178,2]
[391271471,1760459433074,-168.26361376,0.00019178,2]
[391271472,1760459433084,-8542.09009691,0.00019178,2]
[391271473,1760459433093,-205.35459041,0.00019268,2]
[391271474,1760459433102,-500.0,0.0001932,2]
[391271475,1760459433112,-500.0,0.0001932,2]
[391271476,1760459433121,-500.86991837,0.0001932,2]
[391271477,1760459433135,-300.0,0.00019368,2]
[391271478,1760459433144,-300.0,0.00019368,2]
[391271479,1760459433153,-300.0,0.00019368,2]
[391271480,1760459433162,-300.0,0.00019368,2]
[391271481,1760459433171,-300.0,0.00019368,2]
[391271482,1760459433180,-300.0,0.00019368,2]
[391271483,1760459433189,-300.0,0.00019368,2]
[391271484,1760459433198,-300.0,0.00019368,2]
[391271485,1760459433207,-300.0,0.00019368,2]
[391271486,1760459433216,-300.0,0.00019368,2]
[391271487,1760459433226,-300.0,0.00019368,2]
[391271488,1760459433235,-300.0,0.00019368,2]
[391271489,1760459433246,-300.0,0.00019368,2]
[391271490,1760459433254,-300.0,0.00019368,2]
[391271491,1760459433263,-300.0,0.00019368,2]
[391271492,1760459433272,-642.98201841,0.00019525,2]
[391271493,1760459433281,-500.0,0.00019533,2]
[391271494,1760459433290,-500.0,0.00019533,2]
[391271495,1760459433298,-500.0,0.0001955,2]
[391271496,1760459433307,-214.75712526,0.000196,2]
[391271497,1760459433316,-358.75583006,0.000197,2]
[391271498,1760459433324,-500.0,0.000197,2]
[391271499,1760459433333,-500.0,0.000197,2]
[391271500,1760459433341,-500.86697932,0.000197,2]
[391271501,1760459433350,-500.0,0.0001975,2]
[391271502,1760459433358,-600.0,0.00019754,2]
[391271503,1760459433368,-800.4747066,0.00019782,2]
[391271504,1760459433380,-1000.0,0.00019868,2]
[391271505,1760459433390,-1000.0,0.00019868,2]
[391271506,1760459433400,-2913.26963608,0.0002,20]
[391271507,1760459433412,-500.0,0.00020081,2]
[391271508,1760459433421,-1000.0,0.00020081,2]
[391271509,1760459433429,-1000.0,0.00020098,2]
[391271510,1760459433439,-247.32849485,0.00020149,2]
[391271511,1760459433449,-500.0,0.00020149,2]
[391271512,1760459433457,-500.0,0.00020149,2]
[391271513,1760459433467,-156.93201907,0.00020149,2]
[391271514,1760459433477,-500.0,0.00020149,2]
[391271515,1760459433487,-445.97394132,0.00020149,2]
[391271516,1760459433496,-300.53255293,0.00020149,2]
[391271517,1760459433505,-500.0,0.00020149,2]
[391271518,1760459433514,-500.0,0.00020149,2]
[391271519,1760459433523,-500.0,0.00020149,2]
[391271520,1760459433535,-500.0,0.00020149,2]
[391271521,1760459433547,-500.0,0.00020149,2]
[391271522,1760459433555,-500.0,0.00020149,2]
[391271523,1760459433564,-500.0,0.00020149,2]
[391271524,1760459433573,-399.18082143,0.00020149,2]
[391271525,1760459433581,-500.0,0.00020149,2]
[391271526,1760459433591,-500.0,0.0002015,2]
[391271527,1760459433601,-500.0,0.0002015,2]
[391271528,1760459433611,-500.0,0.0002015,2]
[391271529,1760459433620,-500.0,0.0002015,2]
[391271530,1760459433633,-500.0,0.0002015,2]
[391271531,1760459433642,-500.0,0.0002015,2]
[391271532,1760459433651,-161.97366721,0.0002015,2]
[391271533,1760459433660,-500.0,0.0002015,2]
[391271534,1760459433669,-242.76892421,0.000202,2]
[391271535,1760459433678,-467.37987447,0.00020248,2]
[391271536,1760459433687,-500.0,0.00020248,2]
[391271537,1760459433696,-406.72294032,0.00020416,2]
[391271538,1760459433705,-1500.0,0.00020416,2]
[391271539,1760459433713,-314.0,0.00020574,2]
[391271540,1760459433722,-1500.0,0.00020629,2]
[391271541,1760459433731,-500.82063866,0.00020646,2]
[391271542,1760459433739,-1000.0,0.00020698,2]
[391271543,1760459433748,-1000.0,0.00020698,2]
[391271544,1760459433757,-451.63211826,0.00020773,2]
[391271545,1760459433766,-270.78072315,0.000208,2]
[391271546,1760459433775,-420.0,0.00020899,2]
[391271547,1760459433784,-756.59084505,0.00020964,2]
[391271548,1760459433793,-1200.07,0.0002099,2]
[391271549,1760459433802,-5511.15595764,0.00021,5]
[391271550,1760459433811,-692.0860689,0.00021,10]
[391271551,1760459433820,-1680.0,0.00021,2]
[391271552,1760459433829,-2000.0,0.00021177,2]
[391271553,1760459433839,-1500.0,0.00021246,2]
[391271554,1760459433855,-247.39966697,0.00021261,2]
[391271555,1760459433871,-151.0,0.00021261,2]
[391271556,1760459433886,-151.0,0.00021316,2]
[391271557,1760459433895,-151.0,0.00021371,2]
[391271558,1760459433904,-298.7925221,0.000214,2]
[391271559,1760459433913,-153.63453505,0.00021425,2]
[391271560,1760459433922,-162.0,0.00021699,5]
[391271561,1760459433931,-2500.0,0.00021725,2]
[391271562,1760459433940,-720.0,0.0002173,20]
[391271563,1760459433949,-2000.0,0.00021794,2]
[391271564,1760459433958,-160.0,0.00021875,2]
[391271565,1760459433967,-193.04553677,0.00021889,2]
[391271566,1760459433975,-312.30069409,0.00021889,2]
[391271567,1760459433984,-44570.1344937,0.000219,2]
[391271568,1760459433993,-2400.14,0.00021989,2]
[391271569,1760459434002,-100000.0,0.0002199,2]
[391271570,1760459434011,-326.80432105,0.00022,2]
[391271571,1760459434022,-100205.62131227,0.00022,5]
[391271572,1760459434031,-34000.0,0.00022,2]
[391271573,1760459434039,-3000.0,0.00022273,2]
[391271574,1760459434048,-2500.0,0.00022342,2]
[391271575,1760459434057,-260.0,0.00022423,2]
[391271576,1760459434065,-354.81612,0.000226,2]
[391271577,1760459434073,-587.0,0.00022776,2]
[391271578,1760459434082,-168.0,0.00022795,8]
[391271579,1760459434091,-3500.0,0.00022821,2]
[391271580,1760459434100,-3000.0,0.0002289,2]
[391271581,1760459434109,-360.0,0.00022971,2]
[391271582,1760459434118,-567.63014571,0.00022977,2]